fUST/lending_fUST_20250731
["ID","MTS","AMOUNT","RATE_DAILY","PERIOD"]
[376223988,1753897846303,-460.0,0.00019972,2]
[376223990,1753897846312,-460.0,0.00020067,2]
[376223992,1753897846321,-460.0,0.00020167,2]
[376223994,1753897846331,-460.0,0.00020245,2]
[376223996,1753897846340,-460.0,0.00020246,2]
[376223998,1753897846352,-460.0,0.00020341,2]
[376224000,1753897846362,-460.0,0.00020519,2]
[376224002,1753897846372,-460.0,0.0002052,2]
[376224004,1753897846381,-460.0,0.00020615,2]
[376224006,1753897846391,-460.0,0.00020793,2]
[376224008,1753897846401,-460.0,0.00020794,2]
[376224010,1753897846410,-460.0,0.00020889,2]
[376224012,1753897846419,-460.0,0.00021068,2]
[376224013,1753897846428,-460.0,0.00021163,2]
[376224015,1753897846438,-460.0,0.00021437,2]
[376224017,1753897846447,-199916.45722229,0.00023,4]
[376224019,1753897846456,-6285.83,0.00023,4]
[376224021,1753897846465,-36619.09,0.00023,4]
[376224023,1753897846475,-92104.75,0.00023,4]
[376224025,1753897846484,-245.483853,0.00023,7]
[376224027,1753897846493,-245.483853,0.00023,7]
[376224029,1753897846502,-245.483853,0.00023,7]
[376224031,1753897846511,-245.483853,0.00023,7]
[376224033,1753897846519,-245.483853,0.00023,7]
[376224035,1753897846528,-245.483853,0.00023,7]
[376224037,1753897846537,-671.62182394,0.00023,3]
[376224039,1753897846546,-160.0,0.00023,2]
[376224041,1753897846555,-151.0,0.00023,7]
[376224042,1753897846564,-151.0,0.00023,7]
[376224044,1753897846573,-151.0,0.00023,7]
[376224046,1753897846582,-151.0,0.00023,7]
[376224048,1753897846591,-151.0,0.00023,7]
[376224050,1753897846600,-151.0,0.00023,7]
[376224052,1753897846609,-297.369262,0.00023,7]
[376224054,1753897846619,-151.0,0.00023,7]
[376224056,1753897846628,-151.0,0.00023,7]
[376224058,1753897846637,-151.0,0.00023,7]
[376224060,1753897846646,-151.0,0.00023,7]
[376224062,1753897846655,-151.0,0.00023,7]
[376224064,1753897846665,-151.0,0.00023,7]
[376224066,1753897846674,-151.0,0.00023,7]
[376224067,1753897846683,-298.736896,0.00023,7]
[376224069,1753897846693,-257.714034,0.00023,7]
[376224071,1753897846702,-160.0,0.00023,3]
[376224073,1753897846712,-391.0,0.00023008,2]
[376224075,1753897846721,-460.0,0.00023011,2]
[376224077,1753897846730,-263.02104221,0.00023021,2]
[376224079,1753897846739,-1000.0,0.00023021,2]
[376224081,1753897846748,-500.0,0.00023021,2]
[376224083,1753897846757,-500.0,0.00023021,2]
[376224085,1753897846766,-1000.0,0.00023021,2]
[376224087,1753897846775,-1000.0,0.00023021,2]
[376224089,1753897846784,-1000.0,0.00023021,2]
[376224091,1753897846793,-1000.0,0.00023021,2]
[376224093,1753897846802,-1000.0,0.00023021,2]
[376224095,1753897846811,-202.96404361,0.00023043,8]
[376224097,1753897846820,-500.0,0.00023056,2]
[376224099,1753897846829,-421.45,0.00023081,2]
[376224101,1753897846837,-1403.45,0.00023082,2]
[376224103,1753897846846,-460.0,0.00023082,2]
[376224105,1753897846855,-1158.81,0.00023082,2]
[376224107,1753897846865,-391.0,0.00023091,2]
[376224109,1753897846875,-391.0,0.00023092,2]
[376224111,1753897846884,-391.0,0.00023132,2]
[376224113,1753897846893,-391.0,0.00023135,2]
[376224114,1753897846902,-261.25,0.0002314,2]
[376224116,1753897846911,-1113.41,0.00023181,2]
[376224118,1753897846920,-501.23,0.00023181,2]
[376224120,1753897846929,-622.61,0.00023181,2]
[376224122,1753897846938,-460.0,0.00023181,2]
[376224124,1753897846947,-791.15,0.00023183,2]
[376224126,1753897846956,-762.57,0.00023183,2]
[376224128,1753897846965,-435.0,0.00023184,2]
[376224130,1753897846974,-460.0,0.00023184,2]
[376224132,1753897846984,-460.0,0.00023184,2]
[376224134,1753897846993,-667.14,0.00023184,2]
[376224136,1753897847001,-381.0,0.00023243,2]
[376224138,1753897847010,-202.96404361,0.00023257,8]
[376224140,1753897847019,-937.94,0.0002326,2]
[376224142,1753897847028,-2013.97992887,0.00023266,2]
[376224144,1753897847037,-391.0,0.00023284,2]
[376224146,1753897847046,-460.0,0.00023285,2]
[376224147,1753897847055,-381.0,0.00023286,2]
[376224149,1753897847064,-500.0,0.00023287,2]
[376224151,1753897847073,-2793.8543894,0.00023293,2]
[376224153,1753897847082,-500.0,0.0002333,2]
[376224155,1753897847091,-1403.45,0.00023356,2]
[376224156,1753897847101,-460.0,0.00023356,2]
[376224157,1753897847109,-1158.81,0.00023356,2]
[376224158,1753897847118,-204.0,0.00023369,2]
[376224159,1753897847127,-31085.24246361,0.000234,2]
[376224160,1753897847136,-245.483853,0.000234,7]
[376224161,1753897847144,-245.483855,0.000234,7]
[376224162,1753897847154,-166.67620482,0.00023414,2]
[376224163,1753897847163,-400.0,0.00023421,2]
[376224164,1753897847172,-300.0,0.00023421,2]
[376224165,1753897847181,-5611.0,0.00023443,2]
[376224166,1753897847190,-1113.41,0.00023455,2]
[376224167,1753897847198,-501.23,0.00023455,2]
[376224168,1753897847207,-622.61,0.00023455,2]
[376224169,1753897847216,-354.8,0.00023455,2]
[376224170,1753897847225,-791.15,0.00023457,2]
[376224171,1753897847233,-762.57,0.00023457,2]
[376224172,1753897847242,-460.0,0.00023458,2]
[376224173,1753897847251,-460.0,0.00023458,2]
[376224174,1753897847260,-667.14,0.00023458,2]
[376224175,1753897847269,-202.96404361,0.00023471,9]
[376224176,1753897847277,-1000.0,0.000235,2]
[376224177,1753897847286,-937.94,0.00023534,2]
[376224178,1753897847384,-460.0,0.00023559,2]
[376224179,1753897847394,-200.0,0.00023561,2]
[376224181,1753897847403,-200.0,0.00023561,2]
[376224182,1753897847412,-205.52,0.00023561,2]
[376224184,1753897847422,-2200.0,0.00023566,2]
[376224186,1753897847432,-408.34002456,0.00023568,2]
[376224188,1753897847443,-1500.0,0.00023568,2]
[376224190,1753897847452,-151.0,0.00023598,7]
[376224192,1753897847461,-279.993502,0.00023598,7]
[376224194,1753897847471,-500.0,0.00023604,2]
[376224196,1753897847480,-500.0,0.00023615,9]
[376224198,1753897847489,-1403.45,0.0002363,2]
[376224200,1753897847498,-460.0,0.0002363,2]
[376224202,1753897847507,-1158.81,0.0002363,2]
[376224204,1753897847518,-202.96404361,0.00023686,9]
[376224206,1753897847527,-2793.8543894,0.00023687,2]
[376224208,1753897847537,-151.0,0.00023698,7]
[376224210,1753897847546,-1000.0,0.00023698,2]
[376224212,1753897847555,-1000.0,0.00023698,2]
[376224214,1753897847564,-1000.0,0.00023698,2]
[376224216,1753897847573,-1000.0,0.00023698,2]
[376224218,1753897847582,-1000.0,0.00023698,2]
[376224220,1753897847591,-1000.0,0.00023698,2]
[376224222,1753897847600,-1000.0,0.00023698,2]
[376224224,1753897847610,-820.0,0.00023698,2]
[376224226,1753897847621,-807.82,0.000237,7]
[376224228,1753897847630,-6537.04,0.000237,7]
[376224230,1753897847639,-2119.35,0.000237,7]
[376224232,1753897847649,-3644.98099949,0.000237,2]
[376224234,1753897847657,-261.25,0.00023709,2]
[376224236,1753897847667,-1113.41,0.00023729,2]
[376224238,1753897847676,-501.23,0.00023729,2]
[376224240,1753897847685,-622.61,0.00023729,2]
[376224242,1753897847694,-791.15,0.00023731,2]
[376224244,1753897847703,-762.57,0.00023731,2]
[376224246,1753897847713,-460.0,0.00023732,2]
[376224248,1753897847722,-460.0,0.00023732,2]
[376224250,1753897847731,-667.14,0.00023732,2]
[376224252,1753897847740,-151.680365,0.00023737,15]
[376224254,1753897847749,-534.82,0.00023788,7]
[376224256,1753897847758,-57951.25,0.000238,2]
[376224258,1753897847766,-151.0,0.000238,7]
[376224260,1753897847776,-151.0,0.000238,7]
[376224262,1753897847785,-520.52,0.00023808,7]
[376224264,1753897847794,-555.57,0.00023808,7]
[376224266,1753897847803,-937.94,0.00023808,2]
[376224267,1753897847812,-460.0,0.00023833,2]
[376224269,1753897847821,-262.0,0.00023836,11]
[376224271,1753897847830,-12809.63117454,0.0002387,2]
[376224273,1753897847839,-500.0,0.00023878,2]
[376224275,1753897847848,-534.82,0.00023888,7]
[376224277,1753897847857,-202.96404361,0.000239,10]
[376224279,1753897847868,-1403.45,0.00023904,2]
[376224281,1753897847878,-460.0,0.00023904,2]
[376224283,1753897847887,-1158.81,0.00023904,2]
[376224285,1753897847896,-520.52,0.00023908,7]
[376224287,1753897847905,-555.57,0.00023908,7]
[376224289,1753897847915,-600.0,0.00023968,2]
[376224291,1753897847924,-450.0,0.00023968,2]
[376224293,1753897847933,-1000.0,0.00023968,2]
[376224295,1753897847942,-151.680365,0.00023982,15]
[376224297,1753897847951,-1867.18060476,0.00024,4]
[376224299,1753897847960,-160.0,0.00024,7]
[376224302,1753897847978,-231.43925844,0.00024,7]
[376224304,1753897847990,-160.0,0.00024,7]
[376224306,1753897847999,-160.0,0.00024,7]
[376224308,1753897848009,-1113.41,0.00024003,2]
[376224310,1753897848019,-501.23,0.00024003,2]
[376224313,1753897848028,-622.61,0.00024003,2]
[376224314,1753897848038,-791.15,0.00024005,2]
[376224317,1753897848048,-762.57,0.00024005,2]
[376224318,1753897848058,-460.0,0.00024006,2]
[376224320,1753897848067,-460.0,0.00024006,2]
[376224322,1753897848078,-667.14,0.00024006,2]
[376224324,1753897848087,-520.52,0.00024008,7]
[376224327,1753897848097,-555.59,0.00024008,7]
[376224329,1753897848106,-2793.8543894,0.0002408,2]
[376224331,1753897848118,-937.94,0.00024082,2]
[376224333,1753897848128,-460.0,0.00024107,2]
[376224335,1753897848137,-520.52,0.00024108,7]
[376224337,1753897848146,-202.96404361,0.00024114,10]
[376224339,1753897848156,-500.0,0.00024152,2]
[376224341,1753897848165,-1403.45,0.00024178,2]
[376224343,1753897848174,-460.0,0.00024178,2]
[376224345,1753897848184,-1158.81,0.00024178,2]
[376224347,1753897848194,-229.42,0.00024212,2]
[376224349,1753897848203,-1113.41,0.00024277,2]
[376224351,1753897848212,-501.23,0.00024277,2]
[376224353,1753897848222,-622.61,0.00024277,2]
[376224355,1753897848232,-791.15,0.00024279,2]
[376224357,1753897848242,-762.57,0.00024279,2]
[376224359,1753897848251,-261.25,0.00024279,2]
[376224361,1753897848261,-460.0,0.0002428,2]
[376224363,1753897848271,-169.9442464,0.0002428,2]
[376224365,1753897848281,-667.14,0.0002428,2]
[376224367,1753897848291,-460.59675358,0.000243,3]
[376224369,1753897848301,-160.0,0.000243,3]
[376224371,1753897848311,-231.43925844,0.000243,3]
[376224373,1753897848320,-160.0,0.000243,3]
[376224375,1753897848329,-202.96404361,0.00024329,11]
[376224377,1753897848340,-5611.0,0.00024354,2]
[376224379,1753897848352,-937.94,0.00024356,2]
[376224381,1753897848363,-277.43,0.00024381,2]
[376224383,1753897848373,-500.0,0.00024426,2]
[376224385,1753897848383,-293.85068442,0.00024435,2]
[376224387,1753897848394,-700.0,0.00024448,2]
[376224389,1753897848403,-700.0,0.0002445,2]
[376224391,1753897848413,-1403.45,0.00024452,2]
[376224393,1753897848425,-460.0,0.00024452,2]
[376224395,1753897848434,-1158.81,0.00024452,2]
[376224397,1753897848444,-2793.8543894,0.00024474,2]
[376224399,1753897848454,-700.0,0.00024476,2]
[376224401,1753897848463,-700.0,0.00024492,2]
[376224403,1753897848473,-151.680365,0.00024494,5]
[376224405,1753897848482,-700.0,0.00024499,2]
[376224407,1753897848491,-200.0,0.000245,2]
[376224409,1753897848500,-4508.7442778,0.000245,15]
[376224411,1753897848510,-800.0,0.00024516,2]
[376224413,1753897848520,-600.0,0.00024516,2]
[376224415,1753897848529,-202.96404361,0.00024543,11]
[376224417,1753897848538,-700.0,0.00024547,2]
[376224419,1753897848548,-1113.41,0.00024551,2]
[376224421,1753897848557,-501.23,0.00024551,2]
[376224423,1753897848567,-622.61,0.00024551,2]
[376224424,1753897848576,-791.15,0.00024553,2]
[376224426,1753897848586,-762.57,0.00024553,2]
[376224429,1753897848596,-460.0,0.00024554,2]
[376224430,1753897848606,-667.14,0.00024554,2]
[376224432,1753897848616,-700.0,0.00024576,2]
[376224434,1753897848625,-1262.0,0.000246,2]
[376224436,1753897848635,-937.94,0.0002463,2]
[376224438,1753897848644,-500.0,0.00024633,2]
[376224440,1753897848654,-700.0,0.00024642,2]
[376224442,1753897848663,-500.0,0.00024647,2]
[376224444,1753897848673,-300.0,0.00024657,4]
[376224446,1753897848682,-300.0,0.00024657,4]
[376224449,1753897848693,-300.0,0.00024657,4]
[376224451,1753897848702,-300.0,0.00024657,4]
[376224453,1753897848712,-300.0,0.00024657,4]
[376224455,1753897848721,-300.0,0.00024657,4]
[376224457,1753897848731,-300.0,0.00024657,4]
[376224459,1753897848740,-300.0,0.00024657,4]
[376224461,1753897848749,-446.09844653,0.00024657,4]
[376224463,1753897848759,-151.0,0.00024657,7]
[376224465,1753897848768,-380.0,0.00024658,2]
[376224467,1753897848778,-151.15338271,0.00024658,2]
[376224469,1753897848788,-419.0,0.00024658,2]
[376224471,1753897848797,-700.0,0.00024697,2]
[376224473,1753897848806,-500.0,0.000247,2]
[376224475,1753897848816,-500.0,0.00024703,2]
[376224477,1753897848825,-500.0,0.00024713,2]
[376224478,1753897848834,-1403.45,0.00024726,2]
[376224481,1753897848844,-460.0,0.00024726,2]
[376224483,1753897848853,-1158.81,0.00024726,2]
[376224485,1753897848864,-700.0,0.0002475,2]
[376224487,1753897848873,-700.0,0.0002475,2]
[376224489,1753897848882,-202.96404361,0.00024757,11]
[376224491,1753897848893,-500.0,0.00024773,2]
[376224493,1753897848902,-30076.74795013,0.000248,7]
[376224495,1753897848911,-237089.946586,0.000248,2]
[376224497,1753897848920,-700.0,0.00024818,2]
[376224499,1753897848929,-151.0,0.00024824,6]
[376224501,1753897848938,-1113.41,0.00024825,2]
[376224503,1753897848948,-501.23,0.00024825,2]
[376224505,1753897848956,-622.61,0.00024825,2]
[376224507,1753897848966,-791.15,0.00024827,2]
[376224509,1753897848975,-762.57,0.00024827,2]
[376224510,1753897848984,-460.0,0.00024828,2]
[376224512,1753897848994,-667.14,0.00024828,2]
[376224514,1753897849004,-500.0,0.00024836,2]
[376224517,1753897849013,-500.0,0.00024845,2]
[376224518,1753897849022,-261.25,0.00024849,2]
[376224520,1753897849031,-700.0,0.00024859,2]
[376224522,1753897849041,-500.0,0.00024864,2]
[376224524,1753897849050,-2793.8543894,0.00024867,2]
[376224526,1753897849060,-700.0,0.00024888,2]
[376224528,1753897849069,-250.0,0.000249,2]
[376224530,1753897849079,-250.0,0.000249,2]
[376224532,1753897849089,-250.0,0.000249,2]
[376224534,1753897849099,-250.0,0.000249,2]
[376224537,1753897849110,-250.0,0.000249,2]
[376224538,1753897849120,-250.0,0.000249,2]
[376224540,1753897849130,-384.2,0.000249,2]
[376224542,1753897849139,-807.82,0.000249,7]
[376224544,1753897849149,-6537.04,0.000249,7]
[376224547,1753897849158,-2119.35,0.000249,7]
[376224548,1753897849168,-151.0,0.000249,7]
[376224551,1753897849177,-630181.24917463,0.000249,2]
[376224556,1753897849223,-62550.0002,0.000249,2]
[376224588,1753897849523,-460.0,0.00019697,2]
[376224590,1753897849532,-462.68571048,0.00019697,2]
[376224592,1753897849541,-460.0,0.00019698,2]
[376224594,1753897849550,-460.0,0.00019698,2]
[376224596,1753897849559,-460.0,0.00019972,2]
[376224598,1753897849568,-460.0,0.00020068,2]
[376224600,1753897849577,-460.0,0.00020342,2]
[376224602,1753897849587,-810.77,0.00022241,10]
[376224604,1753897849596,-526.76118213,0.00023,3]
[376224606,1753897849605,-526.76118213,0.00024,7]
[376224608,1753897849615,-151.0,0.00024658,7]
[376224610,1753897849623,-95094.3290331,0.000249,2]
[376226926,1753898301613,1702.45352925,0.0001901,6]
[376226929,1753898497053,170.179228,0.00013699,2]
[376227002,1753899032502,-666.0,0.00019178,2]
[376227005,1753899032511,-230.591606,0.00019178,2]
[376227008,1753899032522,-328.95658145,0.0001965,2]
[376227011,1753899032532,-300.0,0.00019671,2]
[376227014,1753899032542,-1200.0,0.00019671,2]
[376227016,1753899032554,-161.0,0.00019671,2]
[376227018,1753899032563,-1200.0,0.00019672,2]
[376227020,1753899032572,-300.0,0.00019672,2]
[376227022,1753899032582,-500.0,0.00019673,2]
[376227024,1753899032592,-500.0,0.00019673,2]
[376227026,1753899032601,-500.0,0.00019673,2]
[376227028,1753899032611,-233.45181235,0.00019684,2]
[376227031,1753899032622,-603.85641072,0.00019684,2]
[376227033,1753899032631,-160.0,0.00019692,2]
[376227035,1753899032641,-460.0,0.00019695,2]
[376227037,1753899032649,-460.0,0.00019695,2]
[376227039,1753899032659,-525.00679819,0.00019695,2]
[376227041,1753899032669,-460.0,0.00019695,2]
[376227043,1753899032678,-460.0,0.00019695,2]
[376227045,1753899032688,-355.00028269,0.00019695,2]
[376227048,1753899032698,-460.0,0.00019695,2]
[376227051,1753899032707,-732.2,0.00019695,2]
[376227054,1753899032716,-460.0,0.00019695,2]
[376227057,1753899032732,-460.0,0.00019695,2]
[376227060,1753899032742,-126.03846892,0.00019695,2]
[376227186,1753899038506,-333.96153108,0.00019695,2]
[376227188,1753899038516,-460.0,0.00019695,2]
[376227190,1753899038525,-250.67846614,0.00019696,2]
[376227192,1753899038535,-460.75633619,0.00019696,2]
[376227194,1753899038545,-380.39555208,0.00019696,2]
[376227196,1753899038558,-460.0,0.00019696,2]
[376227198,1753899038568,-460.0,0.00019696,2]
[376227200,1753899038578,-460.0,0.00019696,2]
[376227202,1753899038587,-460.0,0.00019696,2]
[376227203,1753899038598,-460.0,0.00019696,2]
[376227204,1753899038607,-460.0,0.00019696,2]
[376227205,1753899038618,-460.0,0.00019696,2]
[376227207,1753899038627,-460.0,0.00019696,2]
[376227209,1753899038637,-460.0,0.00019696,2]
[376227211,1753899038648,-460.0,0.00019696,2]
[376227213,1753899038657,-460.0,0.00019696,2]
[376227215,1753899038667,-225.69882978,0.00019696,2]
[376227217,1753899038679,-234.30117022,0.00019696,2]
[376227219,1753899038689,-338.00958219,0.00019696,2]
[376227221,1753899038698,-460.0,0.00019696,2]
[376227223,1753899038707,-460.0,0.00019696,2]
[376227225,1753899038717,-460.0,0.00019696,2]
[376227227,1753899038728,-460.0,0.00019696,2]
[376227229,1753899038738,-460.0,0.00019696,2]
[376227231,1753899038748,-460.0,0.00019696,2]
[376227233,1753899038757,-464.88709639,0.00019696,2]
[376227235,1753899038766,-460.0,0.00019696,2]
[376227237,1753899038777,-460.0,0.00019696,2]
[376227239,1753899038787,-460.0,0.00019696,2]
[376227241,1753899038805,-460.0,0.00019696,2]
[376227243,1753899038822,-460.0,0.00019696,2]
[376227246,1753899038832,-460.0,0.00019696,2]
[376227248,1753899038841,-460.0,0.00019696,2]
[376227250,1753899038851,-460.0,0.00019696,2]
[376227253,1753899038860,-460.0,0.00019696,2]
[376227255,1753899038870,-460.0,0.00019696,2]
[376227257,1753899038879,-460.0,0.00019696,2]
[376227259,1753899038889,-460.0,0.00019696,2]
[376227261,1753899038899,-460.0,0.00019696,2]
[376227263,1753899038908,-461.00979763,0.00019696,2]
[376227264,1753899038917,-460.0,0.00019696,2]
[376227266,1753899038927,-460.0,0.00019696,2]
[376227268,1753899038935,-460.0,0.00019696,2]
[376227270,1753899038944,-460.0,0.00019696,2]
[376227272,1753899038954,-460.0,0.00019696,2]
[376227273,1753899038963,-460.0,0.00019696,2]
[376227274,1753899038972,-460.0,0.00019696,2]
[376227275,1753899038983,-270.84997867,0.00019696,2]
[376227276,1753899038992,-460.0,0.00019696,2]
[376227277,1753899039001,-489.3552884,0.00019696,2]
[376227278,1753899039011,-460.0,0.00019696,2]
[376227279,1753899039020,-460.0,0.00019696,2]
[376227280,1753899039030,-460.0,0.00019696,2]
[376227281,1753899039039,-460.0,0.00019696,2]
[376227282,1753899039051,-460.0,0.00019696,2]
[376227283,1753899039061,-460.0,0.00019696,2]
[376227284,1753899039070,-460.0,0.00019696,2]
[376227285,1753899039079,-460.42004013,0.00019696,2]
[376227286,1753899039088,-460.0,0.00019696,2]
[376227287,1753899039097,-460.0,0.00019696,2]
[376227288,1753899039107,-460.0,0.00019696,2]
[376227289,1753899039116,-460.0,0.00019696,2]
[376227290,1753899039125,-460.0,0.00019696,2]
[376227291,1753899039134,-460.0,0.00019696,2]
[376227292,1753899039144,-460.0,0.00019696,2]
[376227293,1753899039154,-460.0,0.00019696,2]
[376227294,1753899039163,-460.0,0.00019696,2]
[376227295,1753899039172,-460.0,0.00019696,2]
[376227296,1753899039181,-460.0,0.00019696,2]
[376227297,1753899039191,-460.0,0.00019696,2]
[376227298,1753899039200,-460.0,0.00019696,2]
[376227299,1753899039209,-460.0,0.00019696,2]
[376227300,1753899039218,-460.0,0.00019696,2]
[376227301,1753899039227,-460.0,0.00019696,2]
[376227302,1753899039236,-460.0,0.00019696,2]
[376227303,1753899039245,-460.0,0.00019696,2]
[376227304,1753899039254,-460.70338835,0.00019696,2]
[376227305,1753899039264,-460.0,0.00019696,2]
[376227306,1753899039274,-460.0,0.00019696,2]
[376227307,1753899039283,-460.0,0.00019696,2]
[376227308,1753899039292,-1474.55,0.00019696,2]
[376227309,1753899039301,-460.0,0.00019696,2]
[376227310,1753899039310,-460.0,0.00019696,2]
[376227311,1753899039319,-600.21749227,0.00019696,2]
[376227312,1753899039328,-460.0,0.00019696,2]
[376227313,1753899039337,-460.0,0.00019696,2]
[376227314,1753899039346,-460.0,0.00019696,2]
[376227315,1753899039355,-460.0,0.00019696,2]
[376227316,1753899039364,-460.0,0.00019696,2]
[376227317,1753899039374,-460.0,0.00019696,2]
[376227318,1753899039384,-460.0,0.00019696,2]
[376227319,1753899039393,-460.0,0.00019696,2]
[376227320,1753899039403,-460.0,0.00019696,2]
[376227321,1753899039413,-460.0,0.00019696,2]
[376227322,1753899039422,-460.0,0.00019696,2]
[376227323,1753899039432,-460.0,0.00019696,2]
[376227324,1753899039441,-460.0,0.00019696,2]
[376227325,1753899039450,-460.0,0.00019696,2]
[376227326,1753899039460,-460.0,0.00019696,2]
[376227327,1753899039469,-460.0,0.00019696,2]
[376227328,1753899039478,-460.0,0.00019696,2]
[376227329,1753899039487,-460.0,0.00019696,2]
[376227330,1753899039498,-460.0,0.00019696,2]
[376227331,1753899039513,-460.0,0.00019696,2]
[376227332,1753899039522,-2352.58,0.00019696,2]
[376227333,1753899039532,-460.0,0.00019696,2]
[376227334,1753899039541,-460.0,0.00019696,2]
[376227335,1753899039551,-149.324019,0.00019696,2]
[376227336,1753899039569,-310.675981,0.00019696,2]
[376227337,1753899039578,-518.77457289,0.00019696,2]
[376227338,1753899039588,-460.0,0.00019696,2]
[376227339,1753899039597,-460.0,0.00019696,2]
[376227340,1753899039607,-460.0,0.00019696,2]
[376227341,1753899039616,-616.83,0.00019696,2]
[376227342,1753899039626,-460.0,0.00019696,2]
[376227343,1753899039636,-460.0,0.00019696,2]
[376227344,1753899039645,-460.0,0.00019696,2]
[376227345,1753899039654,-460.0,0.00019696,2]
[376227346,1753899039663,-460.0,0.00019696,2]
[376227347,1753899039673,-460.0,0.00019696,2]
[376227348,1753899039682,-460.0,0.00019696,2]
[376227349,1753899039691,-460.0,0.00019696,2]
[376227350,1753899039700,-460.0,0.00019696,2]
[376227351,1753899039710,-460.0,0.00019696,2]
[376227352,1753899039719,-460.0,0.00019696,2]
[376227353,1753899039729,-460.0,0.00019696,2]
[376227354,1753899039741,-460.0,0.00019696,2]
[376227355,1753899039750,-460.0,0.00019696,2]
[376227356,1753899039759,-460.0,0.00019696,2]
[376227357,1753899039770,-460.0,0.00019696,2]
[376227358,1753899039779,-460.0,0.00019696,2]
[376227359,1753899039788,-460.0,0.00019696,2]
[376227360,1753899039797,-460.0,0.00019696,2]
[376227361,1753899039810,-460.0,0.00019696,2]
[376227362,1753899039819,-460.0,0.00019696,2]
[376227363,1753899039829,-460.0,0.00019696,2]
[376227364,1753899039838,-460.0,0.00019697,2]
[376227365,1753899039846,-460.0,0.00019697,2]
[376227366,1753899039857,-506.94498593,0.00019697,2]
[376227367,1753899039867,-460.0,0.00019697,2]
[376227368,1753899039876,-460.0,0.00019697,2]
[376227369,1753899039885,-460.0,0.00019697,2]
[376227370,1753899039894,-460.0,0.00019697,2]
[376227371,1753899039903,-460.0,0.00019697,2]
[376227372,1753899039913,-286.19943178,0.00019697,2]
[376227374,1753899039922,-460.0,0.00019697,2]
[376227376,1753899039931,-460.0,0.00019697,2]
[376227378,1753899039941,-509.23217772,0.00019697,2]
[376227380,1753899039950,-460.0,0.00019697,2]
[376227382,1753899039959,-460.0,0.00019697,2]
[376227384,1753899039968,-460.0,0.00019697,2]
[376227386,1753899039977,-463.15690728,0.00019697,2]
[376227388,1753899039986,-356.56440655,0.00019697,2]
[376227390,1753899039995,-500.0,0.00019697,2]
[376227392,1753899040004,-460.0,0.00019697,2]
[376227393,1753899040014,-460.0,0.00019697,2]
[376227395,1753899040023,-460.0,0.00019697,2]
[376227398,1753899040033,-460.0,0.00019697,2]
[376227400,1753899040042,-460.0,0.00019697,2]
[376227402,1753899040052,-460.0,0.00019697,2]
[376227403,1753899040061,-460.0,0.00019697,2]
[376227406,1753899040071,-460.0,0.00019697,2]
[376227408,1753899040080,-563.92346374,0.00019697,2]